[Event "*** Titled Tuesday Blitz"]
[Site "Chess.com"]
[Date "2020.11.03"]
[Round "6"]
[White "ciucas1892"]
[Black "Ural_bogatyr"]
[Result "0-1"]
[WhiteElo "2269"]
[BlackElo "2386"]
[TimeControl "180+1"]
[EndTime "11:11:06 PST"]
[Termination "Ural_bogatyr won by resignation"]

1. c4 {[%clk 0:03:00.9]} 1... Nf6 {[%clk 0:02:55]} 2. Nf3 {[%clk 0:03:00.7]}
2... e6 {[%clk 0:02:54.7]} 3. g3 {[%clk 0:03:00.1]} 3... d5 {[%clk 0:02:55.1]}
4. Bg2 {[%clk 0:03:00.6]} 4... c6 {[%clk 0:02:55]} 5. O-O {[%clk 0:03:00.4]}
5... Be7 {[%clk 0:02:55.6]} 6. Qc2 {[%clk 0:03:00.1]} 6... O-O {[%clk
0:02:56.1]} 7. d4 {[%clk 0:03:00.4]} 7... Nbd7 {[%clk 0:02:55.4]} 8. b3 {[%clk
0:03:00]} 8... b6 {[%clk 0:02:55.5]} 9. Rd1 {[%clk 0:03:00.2]} 9... Bb7 {[%clk
0:02:55.3]} 10. Nc3 {[%clk 0:03:00.3]} 10... Rc8 {[%clk 0:02:55.1]} 11. e4
{[%clk 0:03:00.6]} 11... dxe4 {[%clk 0:02:55]} 12. Nxe4 {[%clk 0:03:00.8]} 12...
Nxe4 {[%clk 0:02:55.9]} 13. Qxe4 {[%clk 0:03:01.3]} 13... Nf6 {[%clk 0:02:56.8]}
14. Qc2 {[%clk 0:02:53.9]} 14... Qc7 {[%clk 0:02:42.1]} 15. Bf4 {[%clk
0:02:48.1]} 15... Bd6 {[%clk 0:02:42.5]} 16. Bxd6 {[%clk 0:02:48.3]} 16... Qxd6
{[%clk 0:02:43.4]} 17. c5 {[%clk 0:02:48.9]} 17... Qe7 {[%clk 0:02:40.2]} 18.
Ne5 {[%clk 0:02:43.9]} 18... Nd5 {[%clk 0:02:40.4]} 19. a3 {[%clk 0:02:42.4]}
19... Rfd8 {[%clk 0:02:36.3]} 20. b4 {[%clk 0:02:41.2]} 20... Ba6 {[%clk
0:02:26.4]} 21. Qb3 {[%clk 0:02:27.9]} 21... bxc5 {[%clk 0:02:17.6]} 22. bxc5
{[%clk 0:02:17.7]} 22... Qc7 {[%clk 0:02:17.1]} 23. Rab1 {[%clk 0:01:52.1]}
23... Rb8 {[%clk 0:02:11.3]} 24. Qc2 {[%clk 0:01:41.8]} 24... f6 {[%clk
0:02:07.5]} 25. Nc4 {[%clk 0:01:29.6]} 25... Bxc4 {[%clk 0:02:04.1]} 26. Qxc4
{[%clk 0:01:30.5]} 26... Qa5 {[%clk 0:02:04.6]} 27. Qe2 {[%clk 0:01:13]} 27...
e5 {[%clk 0:01:43.1]} 28. dxe5 {[%clk 0:01:06.6]} 28... Qxc5 {[%clk 0:01:42.4]}
29. Bxd5+ {[%clk 0:01:00.7]} 29... cxd5 {[%clk 0:01:39.9]} 30. exf6 {[%clk
0:01:00.4]} 30... gxf6 {[%clk 0:01:34.2]} 31. Qe6+ {[%clk 0:01:00.1]} 31... Kg7
{[%clk 0:01:34.2]} 32. Rbc1 {[%clk 0:00:59.6]} 32... Qb6 {[%clk 0:01:23.9]} 33.
Qg4+ {[%clk 0:00:54.6]} 33... Kh8 {[%clk 0:01:22.4]} 34. h4 {[%clk 0:00:48.9]}
34... Rg8 {[%clk 0:01:05.7]} 35. Qf4 {[%clk 0:00:47.7]} 35... Rbd8 {[%clk
0:01:03.5]} 36. Rc7 {[%clk 0:00:31.8]} 36... d4 {[%clk 0:01:02]} 37. Rf7 {[%clk
0:00:25.5]} 37... Rd6 {[%clk 0:00:54]} 38. Qf5 {[%clk 0:00:24]} 38... Rg7 {[%clk
0:00:49.2]} 39. Rf8+ {[%clk 0:00:18.8]} 39... Rg8 {[%clk 0:00:49.4]} 40. Rf7
{[%clk 0:00:17.8]} 40... Rg7 {[%clk 0:00:49.3]} 41. Qc8+ {[%clk 0:00:16.2]}
41... Rd8 {[%clk 0:00:41.8]} 42. Rf8+ {[%clk 0:00:15.8]} 42... Rxf8 {[%clk
0:00:36.3]} 43. Qxf8+ {[%clk 0:00:15.5]} 43... Rg8 {[%clk 0:00:37.2]} 44. Qf7
{[%clk 0:00:14.9]} 44... Qd6 {[%clk 0:00:34.7]} 45. Rd3 {[%clk 0:00:14.8]} 45...
Rf8 {[%clk 0:00:28.7]} 46. Qh5 {[%clk 0:00:13]} 46... Rd8 {[%clk 0:00:27.1]} 47.
Qf5 {[%clk 0:00:13.3]} 47... Qe5 {[%clk 0:00:25.9]} 48. Qf3 {[%clk 0:00:12.5]}
48... f5 {[%clk 0:00:22.7]} 49. Kg2 {[%clk 0:00:12.7]} 49... Qe4 {[%clk
0:00:22.2]} 50. h5 {[%clk 0:00:11.8]} 50... Kg7 {[%clk 0:00:21.6]} 51. Kg1
{[%clk 0:00:09.3]} 51... Qxf3 {[%clk 0:00:19.1]} 52. Rxf3 {[%clk 0:00:09.1]}
52... d3 {[%clk 0:00:20]} 53. Kg2 {[%clk 0:00:03]} 53... d2 {[%clk 0:00:20.3]}
54. h6+ {[%clk 0:00:03.5]} 54... Kg6 {[%clk 0:00:20.3]} 55. Rxf5 {[%clk
0:00:04.2]} 55... Kxf5 {[%clk 0:00:20.1]} 0-1

[Event "*** Titled Tuesday Blitz"]
[Site "Chess.com"]
[Date "2020.11.03"]
[Round "6"]
[White "Forantes"]
[Black "lamomiablanca"]
[Result "0-1"]
[WhiteElo "2383"]
[BlackElo "2277"]
[TimeControl "180+1"]
[EndTime "11:11:10 PST"]
[Termination "lamomiablanca won by resignation"]

1. e4 {[%clk 0:03:00.9]} 1... g6 {[%clk 0:02:58.1]} 2. d4 {[%clk 0:03:00.9]}
2... Bg7 {[%clk 0:02:57.7]} 3. Nc3 {[%clk 0:03:01.5]} 3... c6 {[%clk 0:02:57.4]}
4. a4 {[%clk 0:03:01]} 4... d5 {[%clk 0:02:53.1]} 5. Be3 {[%clk 0:02:59.7]} 5...
dxe4 {[%clk 0:02:49.5]} 6. Nxe4 {[%clk 0:02:59.8]} 6... Nd7 {[%clk 0:02:49.5]}
7. Bc4 {[%clk 0:02:57.4]} 7... Ngf6 {[%clk 0:02:41.2]} 8. Qf3 {[%clk 0:02:31.1]}
8... O-O {[%clk 0:02:38.1]} 9. Ne2 {[%clk 0:02:20.9]} 9... Nxe4 {[%clk
0:02:36.9]} 10. Qxe4 {[%clk 0:02:21]} 10... Nf6 {[%clk 0:02:37.2]} 11. Qh4
{[%clk 0:02:21.1]} 11... Bf5 {[%clk 0:02:31.9]} 12. c3 {[%clk 0:02:16.2]} 12...
Qd7 {[%clk 0:02:14]} 13. Ng3 {[%clk 0:02:13]} 13... Be6 {[%clk 0:02:10.6]} 14.
Bd3 {[%clk 0:02:12.6]} 14... h5 {[%clk 0:02:02.8]} 15. O-O {[%clk 0:02:11]}
15... Ng4 {[%clk 0:01:58.9]} 16. h3 {[%clk 0:01:53.5]} 16... Nxe3 {[%clk
0:01:53.5]} 17. fxe3 {[%clk 0:01:53.6]} 17... Bf6 {[%clk 0:01:47.6]} 18. Rxf6
{[%clk 0:01:24.5]} 18... exf6 {[%clk 0:01:46.5]} 19. Rf1 {[%clk 0:01:25.1]}
19... f5 {[%clk 0:01:43]} 20. Nxh5 {[%clk 0:01:24.9]} 20... Qd8 {[%clk
0:01:35.8]} 21. Qg3 {[%clk 0:01:19.8]} 21... Kh7 {[%clk 0:01:32.5]} 22. Bxf5
{[%clk 0:01:15.8]} 22... Bxf5 {[%clk 0:01:15.3]} 23. Rxf5 {[%clk 0:01:13.9]}
23... f6 {[%clk 0:01:03.3]} 24. Nf4 {[%clk 0:00:41.2]} 24... Qe8 {[%clk
0:01:01.6]} 25. Qh4+ {[%clk 0:00:24]} 25... Kg7 {[%clk 0:00:58.2]} 26. Nh5+
{[%clk 0:00:22.8]} 26... gxh5 {[%clk 0:00:56.7]} 27. Rxh5 {[%clk 0:00:22.8]}
27... Qg6 {[%clk 0:00:56.4]} 28. Rc5 {[%clk 0:00:19.1]} 28... Rae8 {[%clk
0:00:50.3]} 29. d5 {[%clk 0:00:17.7]} 29... Qg5 {[%clk 0:00:35]} 30. Qb4 {[%clk
0:00:16.5]} 30... Qxe3+ {[%clk 0:00:31.7]} 31. Kh2 {[%clk 0:00:16.7]} 31... Re4
{[%clk 0:00:23.6]} 32. Qxb7+ {[%clk 0:00:04.2]} 32... Rf7 {[%clk 0:00:23.5]} 33.
Qb8 {[%clk 0:00:01.3]} 33... Qxc5 {[%clk 0:00:17.3]} 34. Qg3+ {[%clk 0:00:01.7]}
34... Kf8 {[%clk 0:00:14.9]} 35. Qb8+ {[%clk 0:00:01.5]} 35... Re8 {[%clk
0:00:11.8]} 36. Qf4 {[%clk 0:00:01.8]} 36... Qxd5 {[%clk 0:00:10.8]} 37. Qh6+
{[%clk 0:00:01.8]} 37... Ke7 {[%clk 0:00:08.4]} 38. Qh4 {[%clk 0:00:02.3]} 38...
Qe5+ {[%clk 0:00:08.1]} 39. Kg1 {[%clk 0:00:02.7]} 39... Rd8 {[%clk 0:00:07.4]}
40. Qb4+ {[%clk 0:00:02.6]} 40... c5 {[%clk 0:00:06.6]} 41. Qb7+ {[%clk
0:00:02.9]} 41... Rd7 {[%clk 0:00:07.2]} 42. Qa8 {[%clk 0:00:02.8]} 42... Qe3+
{[%clk 0:00:05.4]} 43. Kh2 {[%clk 0:00:03]} 43... Qf4+ {[%clk 0:00:05.7]} 44. g3
{[%clk 0:00:03]} 44... Qf2+ {[%clk 0:00:03.8]} 45. Qg2 {[%clk 0:00:03.5]} 45...
Qe1 {[%clk 0:00:04.3]} 46. Qf3 {[%clk 0:00:02.2]} 46... Rd2+ {[%clk 0:00:04.7]}
47. Qg2 {[%clk 0:00:02.9]} 47... Rxg2+ {[%clk 0:00:05]} 48. Kxg2 {[%clk
0:00:03.8]} 48... Qe2+ {[%clk 0:00:05.8]} 49. Kg1 {[%clk 0:00:04.2]} 49... Rf8
{[%clk 0:00:06.5]} 50. g4 {[%clk 0:00:04.7]} 50... Rd8 {[%clk 0:00:07.3]} 0-1

[Event "*** Titled Tuesday Blitz"]
[Site "Chess.com"]
[Date "2020.11.03"]
[Round "6"]
[White "Borsuk_Konstantin"]
[Black "fyall777"]
[Result "1-0"]
[WhiteElo "2595"]
[BlackElo "2447"]
[TimeControl "180+1"]
[EndTime "11:11:12 PST"]
[Termination "Borsuk_Konstantin won on time"]

1. d4 {[%clk 0:03:00.9]} 1... Nf6 {[%clk 0:02:57.9]} 2. c4 {[%clk 0:03:00.8]}
2... e6 {[%clk 0:02:58.2]} 3. Nc3 {[%clk 0:03:00.7]} 3... Bb4 {[%clk 0:02:58.1]}
4. Qc2 {[%clk 0:03:01]} 4... c5 {[%clk 0:02:57.4]} 5. dxc5 {[%clk 0:03:00.5]}
5... Qa5 {[%clk 0:02:57.4]} 6. Bd2 {[%clk 0:02:59.1]} 6... Na6 {[%clk
0:02:57.5]} 7. a3 {[%clk 0:02:58.5]} 7... Nxc5 {[%clk 0:02:52.3]} 8. O-O-O
{[%clk 0:02:55.3]} 8... Bxc3 {[%clk 0:02:51.1]} 9. Bxc3 {[%clk 0:02:55.4]} 9...
Qa4 {[%clk 0:02:51.3]} 10. Qxa4 {[%clk 0:02:51.4]} 10... Nxa4 {[%clk 0:02:51]}
11. Be5 {[%clk 0:02:49.1]} 11... b6 {[%clk 0:02:33.4]} 12. f3 {[%clk 0:02:47.8]}
12... Ba6 {[%clk 0:02:28.3]} 13. b3 {[%clk 0:02:43.6]} 13... Nc5 {[%clk
0:02:27.1]} 14. Kb2 {[%clk 0:02:43.1]} 14... Nb7 {[%clk 0:02:20.3]} 15. e4
{[%clk 0:02:41]} 15... Rc8 {[%clk 0:02:08.5]} 16. Ne2 {[%clk 0:02:39.2]} 16...
d6 {[%clk 0:02:05.3]} 17. Bxd6 {[%clk 0:02:09.4]} 17... Rd8 {[%clk 0:01:39.7]}
18. e5 {[%clk 0:02:09.4]} 18... Nxd6 {[%clk 0:01:37.7]} 19. exd6 {[%clk
0:02:08.3]} 19... Kd7 {[%clk 0:01:36.8]} 20. Nc3 {[%clk 0:01:56.2]} 20... Kc6
{[%clk 0:01:36.8]} 21. b4 {[%clk 0:01:47.6]} 21... Bb7 {[%clk 0:01:36.2]} 22.
b5+ {[%clk 0:00:55.6]} 22... Kd7 {[%clk 0:01:34.1]} 23. Be2 {[%clk 0:00:48.3]}
23... Ne8 {[%clk 0:01:33.5]} 24. c5 {[%clk 0:00:41.5]} 24... bxc5 {[%clk
0:01:26.9]} 25. Na4 {[%clk 0:00:41.8]} 25... Rc8 {[%clk 0:01:25.2]} 26. Rd2
{[%clk 0:00:39.3]} 26... Nxd6 {[%clk 0:01:21.7]} 27. Rhd1 {[%clk 0:00:37.8]}
27... Bd5 {[%clk 0:01:21.6]} 28. Nc3 {[%clk 0:00:37.8]} 28... Ke7 {[%clk
0:01:08.4]} 29. Nxd5+ {[%clk 0:00:36.9]} 29... exd5 {[%clk 0:01:08.3]} 30. Rxd5
{[%clk 0:00:36.2]} 30... Rhd8 {[%clk 0:01:08.7]} 31. a4 {[%clk 0:00:34.5]} 31...
f6 {[%clk 0:01:05.6]} 32. Kc3 {[%clk 0:00:33]} 32... Nb7 {[%clk 0:00:54.9]} 33.
Bc4 {[%clk 0:00:31]} 33... Rxd5 {[%clk 0:00:53.9]} 34. Bxd5 {[%clk 0:00:28.1]}
34... Na5 {[%clk 0:00:49.8]} 35. Re1+ {[%clk 0:00:27.8]} 35... Kd6 {[%clk
0:00:49.8]} 36. Ba2 {[%clk 0:00:26]} 36... Rd8 {[%clk 0:00:49.7]} 37. Re6+
{[%clk 0:00:24.8]} 37... Kc7 {[%clk 0:00:49.2]} 38. Ra6 {[%clk 0:00:24.2]} 38...
Nb7 {[%clk 0:00:49.2]} 39. Rxa7 {[%clk 0:00:23.6]} 39... Rd1 {[%clk 0:00:48.2]}
40. a5 {[%clk 0:00:21.6]} 40... Kb8 {[%clk 0:00:48.2]} 41. b6 {[%clk 0:00:21.7]}
41... Ra1 {[%clk 0:00:42.9]} 42. Kb2 {[%clk 0:00:21.8]} 42... Re1 {[%clk
0:00:40.1]} 43. Bd5 {[%clk 0:00:21.8]} 43... Re2+ {[%clk 0:00:36]} 44. Kc3
{[%clk 0:00:20.3]} 44... Re7 {[%clk 0:00:27.5]} 45. g4 {[%clk 0:00:15]} 45...
Rd7 {[%clk 0:00:24.1]} 46. Bxb7 {[%clk 0:00:14.3]} 46... Rxb7 {[%clk 0:00:22.4]}
47. Rxb7+ {[%clk 0:00:14.6]} 47... Kxb7 {[%clk 0:00:22.8]} 48. Kc4 {[%clk
0:00:14.5]} 48... Kc6 {[%clk 0:00:23.2]} 49. h4 {[%clk 0:00:14.4]} 49... g6
{[%clk 0:00:21.2]} 50. h5 {[%clk 0:00:14.2]} 50... gxh5 {[%clk 0:00:20.2]} 51.
gxh5 {[%clk 0:00:14.4]} 51... h6 {[%clk 0:00:20.6]} 52. f4 {[%clk 0:00:14.2]}
52... f5 {[%clk 0:00:21]} 53. b7 {[%clk 0:00:14.4]} 53... Kxb7 {[%clk
0:00:21.2]} 54. Kxc5 {[%clk 0:00:15.3]} 54... Ka6 {[%clk 0:00:21.6]} 55. Kd5
{[%clk 0:00:15.9]} 55... Kxa5 {[%clk 0:00:22]} 56. Ke5 {[%clk 0:00:16.5]} 56...
Kb5 {[%clk 0:00:22.6]} 57. Kxf5 {[%clk 0:00:17.1]} 57... Kc5 {[%clk 0:00:23.1]}
58. Kg6 {[%clk 0:00:17.4]} 58... Kd5 {[%clk 0:00:23.6]} 59. f5 {[%clk
0:00:16.7]} 1-0

[Event "*** Titled Tuesday Blitz"]
[Site "Chess.com"]
[Date "2020.11.03"]
[Round "6"]
[White "mortngabriel"]
[Black "niki_2003"]
[Result "0-1"]
[WhiteElo "2308"]
[BlackElo "1954"]
[TimeControl "180+1"]
[EndTime "11:11:19 PST"]
[Termination "niki_2003 won by resignation"]

1. Nc3 {[%clk 0:03:00.9]} 1... Nf6 {[%clk 0:02:59]} 2. d4 {[%clk 0:03:00]} 2...
e6 {[%clk 0:02:57.9]} 3. e4 {[%clk 0:02:58.5]} 3... Bb4 {[%clk 0:02:57.4]} 4.
Bd3 {[%clk 0:02:39]} 4... Bxc3+ {[%clk 0:02:45]} 5. bxc3 {[%clk 0:02:38.4]} 5...
b6 {[%clk 0:02:45.7]} 6. e5 {[%clk 0:02:35.9]} 6... Nd5 {[%clk 0:02:44.8]} 7.
Qg4 {[%clk 0:02:34.7]} 7... Kf8 {[%clk 0:02:43.6]} 8. Ne2 {[%clk 0:02:30]} 8...
Bb7 {[%clk 0:02:42.8]} 9. O-O {[%clk 0:02:28.9]} 9... f6 {[%clk 0:02:35.6]} 10.
f4 {[%clk 0:02:24.9]} 10... f5 {[%clk 0:02:35.1]} 11. Qh3 {[%clk 0:02:16.1]}
11... Nc6 {[%clk 0:02:27.5]} 12. a4 {[%clk 0:02:13]} 12... Qe8 {[%clk
0:02:19.9]} 13. Ba3+ {[%clk 0:02:07.3]} 13... Kg8 {[%clk 0:02:19.5]} 14. g4
{[%clk 0:01:48.8]} 14... Qg6 {[%clk 0:02:14.1]} 15. Kf2 {[%clk 0:01:43.1]} 15...
Qxg4 {[%clk 0:02:08]} 16. Qxg4 {[%clk 0:01:41.8]} 16... fxg4 {[%clk 0:02:08.3]}
17. f5 {[%clk 0:01:26.6]} 17... h5 {[%clk 0:01:56.8]} 18. fxe6 {[%clk
0:01:18.1]} 18... dxe6 {[%clk 0:01:56.3]} 19. Kg3 {[%clk 0:01:15.4]} 19... g5
{[%clk 0:01:48.6]} 20. Rf2 {[%clk 0:01:01.6]} 20... Kg7 {[%clk 0:01:44.4]} 21.
Raf1 {[%clk 0:00:59.5]} 21... h4+ {[%clk 0:01:43.1]} 22. Kxg4 {[%clk 0:00:56.5]}
22... Ne3+ {[%clk 0:01:43.2]} 23. Kxg5 {[%clk 0:00:57]} 23... Nxf1 {[%clk
0:01:42.2]} 24. Rxf1 {[%clk 0:00:57]} 24... h3 {[%clk 0:01:35]} 25. Nf4 {[%clk
0:00:47]} 25... Nd8 {[%clk 0:01:32.1]} 26. Be7 {[%clk 0:00:39.7]} 26... Nf7+
{[%clk 0:01:31.5]} 27. Kg4 {[%clk 0:00:35.8]} 27... Nh6+ {[%clk 0:01:18.9]} 28.
Kg3 {[%clk 0:00:35.9]} 28... Bg2 {[%clk 0:01:14.2]} 29. Nxe6+ {[%clk 0:00:32.2]}
29... Kg8 {[%clk 0:01:10.3]} 30. Rf6 {[%clk 0:00:30.5]} 30... Re8 {[%clk
0:00:58]} 31. Rg6+ {[%clk 0:00:30.4]} 31... Kf7 {[%clk 0:00:58.2]} 32. Bf6
{[%clk 0:00:14.5]} 32... Rxe6 {[%clk 0:00:55.2]} 33. Rg7+ {[%clk 0:00:14.3]}
33... Kf8 {[%clk 0:00:49]} 34. Rxc7 {[%clk 0:00:12.6]} 34... Rg8+ {[%clk
0:00:45.5]} 35. Kh4 {[%clk 0:00:05.2]} 35... Rc6 {[%clk 0:00:40.1]} 36. Rd7
{[%clk 0:00:04.5]} 36... Rxc3 {[%clk 0:00:17]} 37. Bh7 {[%clk 0:00:04.4]} 37...
Bc6 {[%clk 0:00:10.7]} 38. Rd8+ {[%clk 0:00:03.1]} 38... Kf7 {[%clk 0:00:11.2]}
39. Bxg8+ {[%clk 0:00:01.8]} 39... Nxg8 {[%clk 0:00:11.3]} 40. Bg5 {[%clk
0:00:02.7]} 40... Rxc2 {[%clk 0:00:10.3]} 41. Rd6 {[%clk 0:00:02.4]} 41... Bg2
{[%clk 0:00:07.4]} 42. Bf4 {[%clk 0:00:01.9]} 42... Rf2 {[%clk 0:00:06.9]} 43.
Bg3 {[%clk 0:00:01.9]} 43... Rd2 {[%clk 0:00:05.8]} 44. Rd7+ {[%clk 0:00:02.1]}
44... Ne7 {[%clk 0:00:06.3]} 45. Rxa7 {[%clk 0:00:03]} 45... Ke6 {[%clk
0:00:05.4]} 46. Rb7 {[%clk 0:00:03.9]} 46... Nf5+ {[%clk 0:00:05.6]} 47. Kg5
{[%clk 0:00:04.7]} 47... Nxg3 {[%clk 0:00:05.5]} 48. hxg3 {[%clk 0:00:05.5]}
48... h2 {[%clk 0:00:06.1]} 49. Rh7 {[%clk 0:00:06.2]} 49... h1=Q {[%clk
0:00:05.8]} 50. Rxh1 {[%clk 0:00:07.1]} 50... Bxh1 {[%clk 0:00:06.3]} 51. Kf4
{[%clk 0:00:07.4]} 51... Rxd4+ {[%clk 0:00:06.4]} 52. Ke3 {[%clk 0:00:08.3]}
52... Rxa4 {[%clk 0:00:07]} 53. g4 {[%clk 0:00:09.2]} 53... Rxg4 {[%clk
0:00:07.3]} 0-1

[Event "*** Titled Tuesday Blitz"]
[Site "Chess.com"]
[Date "2020.11.03"]
[Round "6"]
[White "Fortitudine"]
[Black "kinga2008"]
[Result "0-1"]
[WhiteElo "2262"]
[BlackElo "2092"]
[TimeControl "180+1"]
[EndTime "11:11:19 PST"]
[Termination "kinga2008 won by resignation"]

1. c4 {[%clk 0:03:00.9]} 1... g6 {[%clk 0:02:58.6]} 2. Nc3 {[%clk 0:02:59.2]}
2... Bg7 {[%clk 0:02:51]} 3. e4 {[%clk 0:02:58.8]} 3... d6 {[%clk 0:02:49.5]} 4.
g3 {[%clk 0:02:53.4]} 4... Nf6 {[%clk 0:02:48.2]} 5. Bg2 {[%clk 0:02:53.1]} 5...
O-O {[%clk 0:02:46.8]} 6. Nge2 {[%clk 0:02:52.3]} 6... e5 {[%clk 0:02:45.4]} 7.
d3 {[%clk 0:02:51.5]} 7... c5 {[%clk 0:02:37.3]} 8. O-O {[%clk 0:02:49.9]} 8...
Nc6 {[%clk 0:02:36.2]} 9. h3 {[%clk 0:02:47.8]} 9... Be6 {[%clk 0:02:33.9]} 10.
Be3 {[%clk 0:02:46.5]} 10... Qd7 {[%clk 0:02:31.6]} 11. Kh2 {[%clk 0:02:46.1]}
11... Ne8 {[%clk 0:02:18.7]} 12. Nd5 {[%clk 0:02:26.2]} 12... f5 {[%clk
0:02:17.1]} 13. Qd2 {[%clk 0:02:09.8]} 13... fxe4 {[%clk 0:02:07.1]} 14. dxe4
{[%clk 0:02:05.2]} 14... Nd4 {[%clk 0:02:05.7]} 15. Nxd4 {[%clk 0:01:48.3]}
15... cxd4 {[%clk 0:02:04.2]} 16. Bh6 {[%clk 0:01:42.6]} 16... Bxd5 {[%clk
0:01:58.5]} 17. Bxg7 {[%clk 0:01:39]} 17... Bxc4 {[%clk 0:01:47.8]} 18. Bxf8
{[%clk 0:01:34.1]} 18... Bxf1 {[%clk 0:01:45.5]} 19. Rxf1 {[%clk 0:01:19.1]}
19... Kxf8 {[%clk 0:01:37]} 20. h4 {[%clk 0:01:15.6]} 20... Nf6 {[%clk
0:01:32.8]} 21. Bh3 {[%clk 0:01:14.7]} 21... Qc6 {[%clk 0:01:22]} 22. Qh6+
{[%clk 0:00:59.3]} 22... Kg8 {[%clk 0:01:15.5]} 23. Rc1 {[%clk 0:00:34.8]} 23...
Qb6 {[%clk 0:00:48.8]} 24. Be6+ {[%clk 0:00:25.2]} 24... Kh8 {[%clk 0:00:39]}
25. g4 {[%clk 0:00:14.2]} 25... d3 {[%clk 0:00:33.5]} 26. Kg2 {[%clk 0:00:14.4]}
26... Nxe4 {[%clk 0:00:29.9]} 27. Rf1 {[%clk 0:00:10.8]} 27... d2 {[%clk
0:00:18.9]} 28. f3 {[%clk 0:00:09.8]} 28... Qxb2 {[%clk 0:00:15.8]} 29. Kh3
{[%clk 0:00:08.1]} 29... Nf2+ {[%clk 0:00:09.3]} 30. Rxf2 {[%clk 0:00:07.8]}
30... d1=Q {[%clk 0:00:09]} 31. Rxb2 {[%clk 0:00:07.6]} 31... Qh1+ {[%clk
0:00:09.1]} 32. Kg3 {[%clk 0:00:08.2]} 32... Qe1+ {[%clk 0:00:07.6]} 33. Kh3
{[%clk 0:00:08.5]} 33... Qh1+ {[%clk 0:00:06.6]} 34. Kg3 {[%clk 0:00:09]} 34...
Qg1+ {[%clk 0:00:06.6]} 35. Rg2 {[%clk 0:00:09.4]} 35... Qe1+ {[%clk 0:00:07.1]}
36. Kh3 {[%clk 0:00:10.1]} 36... e4 {[%clk 0:00:06.5]} 37. Rh2 {[%clk 0:00:11]}
37... exf3 {[%clk 0:00:04.7]} 38. Qf4 {[%clk 0:00:10.6]} 38... Qe5 {[%clk
0:00:04.3]} 39. Kg3 {[%clk 0:00:11.4]} 39... Qxe6 {[%clk 0:00:03.6]} 40. Qxf3
{[%clk 0:00:11.8]} 40... Qe5+ {[%clk 0:00:03]} 41. Qf4 {[%clk 0:00:11.8]} 41...
Qxf4+ {[%clk 0:00:03.5]} 42. Kxf4 {[%clk 0:00:12.7]} 42... Re8 {[%clk
0:00:04.1]} 43. Rd2 {[%clk 0:00:12.4]} 43... Re6 {[%clk 0:00:03.7]} 44. Rd5
{[%clk 0:00:12.8]} 44... Kg7 {[%clk 0:00:04.1]} 45. Rb5 {[%clk 0:00:12.6]} 45...
b6 {[%clk 0:00:04.2]} 46. Rb3 {[%clk 0:00:12.9]} 46... Kf6 {[%clk 0:00:04.7]}
47. Kg3 {[%clk 0:00:13.8]} 47... h6 {[%clk 0:00:04.4]} 48. Rf3+ {[%clk
0:00:14.7]} 48... Kg7 {[%clk 0:00:04.6]} 49. Ra3 {[%clk 0:00:15.6]} 49... a5
{[%clk 0:00:03.3]} 50. Rb3 {[%clk 0:00:15.9]} 50... d5 {[%clk 0:00:03.4]} 51.
Rb5 {[%clk 0:00:16.1]} 51... Rd6 {[%clk 0:00:03.7]} 52. Rb3 {[%clk 0:00:16]}
52... Kf6 {[%clk 0:00:04.1]} 53. Rf3+ {[%clk 0:00:16.2]} 53... Ke5 {[%clk
0:00:04.7]} 54. Rf4 {[%clk 0:00:15.9]} 54... d4 {[%clk 0:00:05.1]} 55. Rf2
{[%clk 0:00:16.5]} 55... d3 {[%clk 0:00:05.6]} 56. h5 {[%clk 0:00:17.2]} 56...
gxh5 {[%clk 0:00:05.2]} 57. Rd2 {[%clk 0:00:17]} 57... Ke4 {[%clk 0:00:05.2]}
58. gxh5 {[%clk 0:00:17.3]} 58... Ke3 {[%clk 0:00:05.2]} 59. Rh2 {[%clk
0:00:17.5]} 59... d2 {[%clk 0:00:05.7]} 60. Rh1 {[%clk 0:00:17.7]} 60... d1=Q
{[%clk 0:00:05]} 0-1